Workbook

Sheet MYP, MSS
B1: Jusa Heikkinen | E1: 19.12.1996 Tyrnävä
B2: YKKÖSPESIS | E2: Runkosarja | L2: Runkosarja TOP-10 | Q2: Jatkosarjat | X2: SUOMENSARJA | AA2: Runkosarja | AH2: Runkosarja TOP-10 | AM2: Jatkosarjat
B3: Vuosi | C3: Sija | D3: Seura | E3: OTT | F3: KUN | G3: LÖI | H3: TOI | I3: KL | J3: KL-% | L3: LÖI | M3: TOI | N3: L+T | O3: KL | Q3: OTT | R3: KUN | S3: LÖI | T3: TOI | U3: KL | V3: KL-% | X3: Vuosi | Y3: Sija | Z3: Seura | AA3: OTT | AB3: KUN | AC3: LÖI | AD3: TOI | AE3: KL | AF3: KL-% | AH3: LÖI | AI3: TOI | AJ3: L+T | AK3: KL | AM3: OTT | AN3: KUN | AO3: LÖI | AP3: TOI | AQ3: KL | AR3: KL-%
X4: 2017 | Y4: 6. | Z4: KeKi 2 | AA4: 14 | AB4: 0 | AC4: 4 | AD4: 7 | AE4: 46 | AF4: 50.5 % | AG4: 91
X5: 2018 | Y5: 5. | Z5: KeKi 2 | AA5: 12 | AB5: 0 | AC5: 5 | AD5: 18 | AE5: 48 | AF5: 66.7 % | AG5: 72
X6: 2019 | Y6: 5. | Z6: KeKi 2 | AA6: 12 | AB6: 2 | AC6: 5 | AD6: 20 | AE6: 52 | AF6: 59.1 % | AG6: 88
B7: 2020 | C7: 9. | D7: SiKi | E7: 5 | F7: 0 | G7: 0 | H7: 7 | I7: 10 | J7: 47.6 % | K7: 21 | X7: 2020 | Y7: 7. | Z7: SiKi 2 | AA7: 8 | AB7: 0 | AC7: 0 | AD7: 12 | AE7: 40 | AF7: 63.5 % | AG7: 63 | AI7: 8. | AK7: 5.
X8: 2021 | Y8: 4. | Z8: KeKi 2 | AA8: 11 | AB8: 0 | AC8: 5 | AD8: 14 | AE8: 38 | AF8: 61.3 % | AG8: 62
B9: YHTEENSÄ | E9: =SUM(E4:E8) -> 5 | F9: =SUM(F4:F8) -> 0 | G9: 0 | H9: 7 | I9: 10 | J9: =PRODUCT(I9/K9) -> 47.6 % | K9: 21 | Q9: =SUM(Q8:Q8) -> 0 | R9: =SUM(R8:R8) -> 0 | S9: =SUM(S8:S8) -> 0 | T9: =SUM(T8:T8) -> 0 | U9: =SUM(U8:U8) -> 0 | V9: 0.0 % | W9: =SUM(W8:W8) -> 0 | X9: YHTEENSÄ | AA9: =SUM(AA4:AA8) -> 57 | AB9: =SUM(AB4:AB8) -> 2 | AC9: 19 | AD9: 71 | AE9: 224 | AF9: =PRODUCT(AE9/AG9) -> 59.6 % | AG9: 376 | AM9: =SUM(AM8:AM8) -> 0 | AN9: =SUM(AN8:AN8) -> 0 | AO9: =SUM(AO8:AO8) -> 0 | AP9: =SUM(AP8:AP8) -> 0 | AQ9: =SUM(AQ8:AQ8) -> 0 | AR9: 0.0 % | AS9: =SUM(AS8:AS8) -> 0
B11: KAIKKI OTTELUT | E11: OTT | F11: KUN | G11: LÖI | H11: TOI | I11: KL | J11: KL-% | L11: ka/L | M11: ka/T | N11: ka/l+t | O11: ka/kl | R11: Seurat | T11: TyTe = Tyrnävän Tempaus (1921), kasvattajaseura
B12: SUPERPESIS | E12: 0 | F12: 0 | G12: 0 | H12: 0 | I12: 0 | J12: 0.0 % | K12: 0 | L12: 0.00 | M12: 0.00 | N12: 0.00 | O12: 0.00 | T12: KeKi = Kempeleen Kiri (1915)
B13: YKKÖSPESIS | E13: =PRODUCT(E9+Q9) -> 5 | F13: =PRODUCT(F9+R9) -> 0 | G13: =PRODUCT(G9+S9) -> 0 | H13: =PRODUCT(H9+T9) -> 7 | I13: =PRODUCT(I9+U9) -> 10 | J13: =PRODUCT(I13/K13) -> 47.6 % | K13: =PRODUCT(K9+W9) -> 21 | L13: =PRODUCT((F13+G13)/E13) -> 0.00 | M13: =PRODUCT(H13/E13) -> 1.40 | N13: =PRODUCT((F13+G13+H13)/E13) -> 1.40 | O13: =PRODUCT(I13/E13) -> 2.00 | T13: SiKi = Simon Kiri (1926)
B14: SUOMENSARJA | E14: =PRODUCT(AA9+AM9) -> 57 | F14: =PRODUCT(AB9+AN9) -> 2 | G14: =PRODUCT(AC9+AO9) -> 19 | H14: =PRODUCT(AD9+AP9) -> 71 | I14: =PRODUCT(AE9+AQ9) -> 224 | J14: =PRODUCT(I14/K14) -> 59.6 % | K14: =PRODUCT(AG9+AS9) -> 376 | L14: =PRODUCT((F14+G14)/E14) -> 0.37 | M14: =PRODUCT(H14/E14) -> 1.25 | N14: =PRODUCT((F14+G14+H14)/E14) -> 1.61 | O14: =PRODUCT(I14/E14) -> 3.93
B15: YHTEENSÄ | E15: =SUM(E12:E14) -> 62 | F15: =SUM(F12:F14) -> 2 | G15: 19 | H15: 78 | I15: 234 | J15: =PRODUCT(I15/K15) -> 58.9 % | K15: =SUM(K12:K14) -> 397 | L15: =PRODUCT((F15+G15)/E15) -> 0.34 | M15: =PRODUCT(H15/E15) -> 1.26 | N15: =PRODUCT((F15+G15+H15)/E15) -> 1.60 | O15: =PRODUCT(I15/E15) -> 3.77
